fUSD/lending_fUSD_20251031
["ID","MTS","AMOUNT","RATE_DAILY","PERIOD"]
[392731726,1761883504509,150.0,0.00013488,2]
[392731727,1761883506921,150.0,0.00013488,2]
[392731728,1761883506979,150.0,0.00013488,2]
[392731729,1761883511362,150.0,0.00013488,2]
[392731730,1761883513446,150.0,0.00013488,2]
[392731731,1761883514968,165.24468515,0.00013488,2]
[392731732,1761883515062,157.55216431,0.00013488,2]
[392731733,1761883515890,-150.0,0.00013576,2]
[392731734,1761883515911,-150.0,0.00013664,2]
[392731735,1761883515933,-248.14058563,0.00013699,2]
[392731736,1761883516884,152.51088571,0.00013488,2]
[392731737,1761883518281,167.32376632,0.00013488,2]
[392731738,1761883518628,-200.25941437,0.00013699,2]
[392731739,1761883528150,157.00606553,0.00013488,2]
[392731740,1761883528238,159.85598461,0.00013488,2]
[392731741,1761883529302,153.56017478,0.00013488,2]
[392731742,1761883529605,150.0,0.00013488,2]
[392731743,1761883551443,155.33,6.809e-05,2]
[392731744,1761883551484,155.33,7.66e-05,2]
[392731745,1761883551846,155.33,8.511e-05,2]
[392731746,1761883552054,155.33,9.362e-05,2]
[392731747,1761883552256,155.33,0.00010213,2]
[392731748,1761883552454,155.33,0.00011064,2]
[392731749,1761883552680,155.33,0.00011915,2]
[392731750,1761883552904,155.33,0.00012766,2]
[392731751,1761883562067,-155.33,0.00013617,2]
[392731752,1761883562090,-482.15802631,0.00013683,2]
[392731753,1761883629423,304.51,0.00031507,120]
[392731754,1761883647944,-361.66,0.00013683,2]
[392731756,1761883726606,-600.0,0.00013683,2]
[392731757,1761883728399,-250.0,0.00013683,2]
[392731758,1761883745571,436.62191086,0.00015816,7]
[392731759,1761883763151,-0.589414,0.00013683,2]
[392731760,1761883763172,-150.0,0.00013752,2]
[392731761,1761883763194,-150.0,0.0001384,2]
[392731762,1761883763215,-150.0,0.00013928,2]
[392731763,1761883763236,-52.09738379,0.00014017,2]
[392731764,1761883807418,261.97314652,0.0001615,7]
[392731765,1761883826648,223.74,0.00013407,2]
[392731766,1761883831352,-800.0,0.00013946,2]
[392731767,1761883831361,-204.24897499,0.00014005,2]
[392731768,1761883831371,-97.90261621,0.00014017,2]
[392731769,1761883831380,-399.73154208,0.00014092,2]
[392731770,1761883831454,-762.38845792,0.00014092,2]
[392731771,1761883831464,-150.0,0.00014105,2]
[392731772,1761883831474,-223.74,0.00014152,2]
[392731773,1761883831484,-150.0,0.00014193,2]
[392731774,1761883831493,-150.0,0.00014198,2]
[392731775,1761883831503,-300.0,0.00014198,2]
[392731776,1761883831513,-1200.0,0.00014198,2]
[392731777,1761883831523,-279.5087,0.00014199,2]
[392731778,1761883831532,-3680.57,0.00014199,2]
[392731779,1761883831541,-3783.52,0.00014199,2]
[392731780,1761883831552,-9999.99,0.00014199,2]
[392731781,1761883831562,-999.99,0.00014199,2]
[392731782,1761883831571,-150.99,0.00014199,2]
[392731783,1761883831587,-1304.22,0.00014199,2]
[392731784,1761883831597,-1000.0,0.000142,2]
[392731785,1761883831607,-1075.09751579,0.000142,2]
[392731786,1761883831616,-166.09250622,0.000142,2]
[392731787,1761883831626,-2500.0,0.000142,2]
[392731788,1761883831635,-379.34968488,0.000142,2]
[392731789,1761883831644,-150.0,0.00014237,2]
[392731790,1761883831654,-501.18621306,0.00014273,2]
[392731791,1761883831663,-500.0,0.00014273,2]
[392731792,1761883831675,-500.0,0.00014273,2]
[392731793,1761883831684,-500.0,0.00014273,2]
[392731794,1761883831693,-165.76452953,0.00014273,2]
[392731795,1761883831703,-164.29138499,0.00014273,2]
[392731796,1761883831712,-502.25275937,0.00014273,2]
[392731797,1761883831722,-500.0,0.00014273,2]
[392731798,1761883831732,-500.0,0.00014273,2]
[392731800,1761883831742,-500.0,0.00014273,2]
[392731802,1761883831752,-616.62129075,0.00014273,2]
[392731804,1761883831761,-500.0,0.00014273,2]
[392731806,1761883831770,-500.0,0.00014273,2]
[392731808,1761883831779,-502.91745341,0.00014273,2]
[392731810,1761883831788,-500.0,0.00014273,2]
[392731812,1761883831797,-500.0,0.00014273,2]
[392731814,1761883831807,-502.72166675,0.00014273,2]
[392731816,1761883831816,-500.0,0.00014273,2]
[392731818,1761883831826,-500.0,0.00014273,2]
[392731820,1761883831835,-500.0,0.00014273,2]
[392731822,1761883831844,-397.70288529,0.00014273,2]
[392731824,1761883831854,-500.0,0.00014273,2]
[392731826,1761883831863,-500.63268969,0.00014273,2]
[392731828,1761883831872,-313.04198867,0.00014273,2]
[392731830,1761883831881,-500.17803714,0.00014273,2]
[392731832,1761883831891,-846.29,0.00014273,2]
[392731834,1761883831900,-1005.22909489,0.00014277,2]
[392731836,1761883831909,-1075.09751572,0.00014278,2]
[392731838,1761883831920,-379.3496848,0.00014278,2]
[392731840,1761883831929,-150.0,0.00014281,2]
[392731842,1761883831939,-151.0,0.00014291,2]
[392731844,1761883831949,-151.0,0.00014291,2]
[392731846,1761883831958,-151.0,0.00014291,2]
[392731849,1761883831967,-151.0,0.00014291,2]
[392731852,1761883831976,-151.0,0.00014291,2]
[392731854,1761883831986,-151.0,0.00014291,2]
[392731855,1761883831995,-151.0,0.00014291,2]
[392731856,1761883832004,-151.0,0.00014291,2]
[392731857,1761883832013,-151.0,0.00014291,2]
[392731858,1761883832022,-151.0,0.00014291,2]
[392731859,1761883832032,-151.0,0.00014291,2]
[392731860,1761883832041,-151.0,0.00014291,2]
[392731861,1761883832050,-151.0,0.00014291,2]
[392731862,1761883832060,-151.0,0.00014291,2]
[392731863,1761883832070,-151.0,0.00014291,2]
[392731864,1761883832079,-151.0,0.00014291,2]
[392731865,1761883832088,-151.0,0.00014291,2]
[392731866,1761883832098,-151.0,0.00014291,2]
[392731867,1761883832107,-273.83340723,0.00014291,2]
[392731868,1761883832116,-200.0,0.00014291,2]
[392731869,1761883832126,-151.0,0.00014297,2]
[392731870,1761883832135,-282.43662857,0.00014299,2]
[392731871,1761883832145,-66963.12528677,0.00014299,2]
[392731872,1761883832154,-566.91291486,0.00014299,2]
[392731873,1761883832163,-503.16,0.00014299,2]
[392731874,1761883832174,-500.0,0.00014299,2]
[392731875,1761883832184,-500.0,0.00014299,2]
[392731876,1761883832193,-500.0,0.00014299,2]
[392731877,1761883832203,-500.0,0.00014299,2]
[392731878,1761883832212,-500.0,0.00014299,2]
[392731879,1761883832222,-267.35698253,0.00014299,2]
[392731880,1761883832232,-500.0,0.00014299,2]
[392731881,1761883832241,-500.0,0.00014299,2]
[392731882,1761883832250,-557.57094043,0.00014299,2]
[392731883,1761883832260,-362.2777,0.000143,2]
[392731884,1761883832269,-393458.962,0.000143,2]
[392731885,1761883832278,-1000.0,0.000143,2]
[392731886,1761883832287,-415.03,0.000143,2]
[392731887,1761883832296,-1075.09751572,0.00014356,2]
[392731888,1761883832306,-379.3496848,0.00014356,2]
[392731889,1761883832315,-150.0,0.00014369,2]
[392731890,1761883832325,-503.16,0.00014399,2]
[392731891,1761883832335,-500.0,0.00014399,2]
[392731892,1761883832344,-500.0,0.00014399,2]
[392731893,1761883832354,-1075.09751572,0.00014433,2]
[392731894,1761883832363,-379.3496848,0.00014433,2]
[392731895,1761883832372,-150.0,0.00014457,2]
[392731896,1761883832381,-1075.09751572,0.00014511,2]
[392731897,1761883832391,-379.3496848,0.00014511,2]
[392731898,1761883832400,-150.0,0.00014546,2]
[392731899,1761883832409,-846.29,0.00014547,2]
[392731900,1761883832418,-659.61046025,0.0001455,2]
[392731901,1761883832703,-1075.09751572,0.00014589,2]
[392731902,1761883832712,-379.3496848,0.00014589,2]
[392731903,1761883832722,-150.0,0.00014634,2]
[392731904,1761883832732,-201.30016778,0.00014641,2]
[392731905,1761883832741,-1075.09751572,0.00014667,2]
[392731906,1761883832750,-379.3496848,0.00014667,2]
[392731907,1761883832760,-203.43,0.00014672,2]
[392731908,1761883832769,-150.0,0.00014722,2]
[392731909,1761883832778,-1075.09751572,0.00014744,2]
[392731910,1761883832787,-379.3496848,0.00014744,2]
[392731911,1761883832797,-151.0,0.0001476,2]
[392731912,1761883832806,-151.0,0.00014768,2]
[392731913,1761883832816,-151.0,0.00014769,2]
[392731914,1761883832826,-151.0,0.00014769,2]
[392731915,1761883832835,-150.0,0.0001481,2]
[392731916,1761883832845,-554.19377488,0.00014821,2]
[392731917,1761883832854,-500.0,0.00014821,2]
[392731918,1761883832863,-565.04642565,0.00014821,2]
[392731919,1761883832873,-1000.0,0.00014821,2]
[392731920,1761883832884,-1000.0,0.00014821,2]
[392731921,1761883832894,-521.60029007,0.00014821,2]
[392731922,1761883832903,-1000.0,0.00014821,2]
[392731923,1761883832912,-1000.0,0.00014821,2]
[392731924,1761883832925,-1007.85216196,0.00014821,2]
[392731925,1761883832934,-756.44051677,0.00014821,2]
[392731926,1761883832943,-1000.0,0.00014821,2]
[392731927,1761883832953,-507.66202854,0.00014821,2]
[392731928,1761883832963,-1000.0,0.00014821,2]
[392731929,1761883832972,-846.29,0.00014821,2]
[392731930,1761883832982,-1075.09751572,0.00014822,2]
[392731931,1761883832991,-379.3496848,0.00014822,2]
[392731932,1761883833000,-223.74,0.00014897,2]
[392731933,1761883833009,-150.0,0.00014898,2]
[392731934,1761883833019,-339.19472435,0.000149,2]
[392731935,1761883833028,-1075.09751572,0.000149,2]
[392731936,1761883833037,-448.3888554,0.000149,2]
[392731937,1761883833047,-379.3496848,0.000149,2]
[392731938,1761883833056,-166.0,0.00014959,2]
[392731939,1761883833065,-593.70721,0.0001497,2]
[392731940,1761883833075,-502.81965799,0.00014973,2]
[392731941,1761883833085,-500.0,0.00014973,2]
[392731942,1761883833094,-500.0,0.00014973,2]
[392731943,1761883833103,-500.0,0.00014973,2]
[392731944,1761883833112,-500.0,0.00014973,2]
[392731945,1761883833122,-500.0,0.00014973,2]
[392731946,1761883833131,-500.0,0.00014973,2]
[392731947,1761883833141,-503.65285499,0.00014973,2]
[392731948,1761883833150,-504.84590389,0.00014973,2]
[392731949,1761883833159,-285.96194224,0.00014973,2]
[392731950,1761883833169,-500.0,0.00014973,2]
[392731951,1761883833178,-160.59460365,0.00014973,2]
[392731952,1761883833187,-161.08903212,0.00014973,2]
[392731953,1761883833197,-431.50167342,0.00014973,2]
[392731954,1761883833206,-300.14181061,0.00014973,2]
[392731955,1761883833215,-500.0,0.00014973,2]
[392731956,1761883833224,-500.0,0.00014973,2]
[392731957,1761883833234,-506.62529853,0.00014973,2]
[392731958,1761883833243,-500.0,0.00014973,2]
[392731959,1761883833252,-503.12723519,0.00014973,2]
[392731960,1761883833262,-164.16770839,0.00014973,2]
[392731961,1761883833272,-610.9169228,0.00014973,2]
[392731962,1761883833281,-560.04690167,0.00014973,2]
[392731963,1761883833291,-500.0,0.00014973,2]
[392731964,1761883833300,-635.29574414,0.00014973,2]
[392731965,1761883833310,-160.48858115,0.00014973,2]
[392731966,1761883833320,-503.11994174,0.00014973,2]
[392731967,1761883833330,-464.61416163,0.00014973,2]
[392731968,1761883833340,-500.0,0.00014973,2]
[392731969,1761883833349,-504.92321066,0.00014973,2]
[392731970,1761883833359,-502.25451195,0.00014973,2]
[392731971,1761883833369,-500.0,0.00014973,2]
[392731972,1761883833378,-500.0,0.00014973,2]
[392731973,1761883833389,-500.0,0.00014973,2]
[392731974,1761883833398,-532.21851899,0.00014973,2]
[392731975,1761883833408,-150.0,0.00014986,2]
[392731976,1761883833418,-242.27016008,0.00014986,2]
[392731977,1761883833429,-560.17223426,0.0001499,2]
[392731978,1761883833442,-560.17223426,0.0001499,2]
[392731979,1761883833451,-560.17223426,0.0001499,2]
[392731980,1761883833460,-74003.6181012,0.00014995,2]
[392731981,1761883833469,-151.0,0.00014996,2]
[392731982,1761883833479,-151.0,0.00014997,2]
[392731983,1761883833489,-500.0,0.00014998,2]
[392731984,1761883833499,-500.0,0.00014998,2]
[392731985,1761883833508,-500.0,0.00014998,2]
[392731986,1761883833520,-326391.1073053,0.00014999,2]
[392731987,1761883833529,-10953.7112278,0.00014999,2]
[392731988,1761883833538,-5709.2351004,0.00014999,2]
[392731989,1761883833548,-500.0,0.00014999,2]
[392731990,1761883833557,-500.0,0.00014999,2]
[392731991,1761883833567,-500.0,0.00014999,2]
[392731992,1761883833576,-500.0,0.00014999,2]
[392731993,1761883833586,-500.0,0.00014999,2]
[392731994,1761883833596,-644.13983818,0.00014999,2]
[392731995,1761883833606,-500.0,0.00014999,2]
[392731996,1761883833615,-500.0,0.00014999,2]
[392731997,1761883833624,-184.66868516,0.00014999,2]
[392731998,1761883833633,-156.635,0.00014999,2]
[392731999,1761883833642,-500.0,0.00014999,2]
[392732000,1761883833651,-500.0,0.00014999,2]
[392732001,1761883833660,-500.0,0.00014999,2]
[392732002,1761883833670,-500.0,0.00014999,2]
[392732003,1761883833679,-500.0,0.00014999,2]
[392732004,1761883833689,-500.0,0.00014999,2]
[392732005,1761883833698,-500.0,0.00014999,2]
[392732006,1761883833708,-503.24384092,0.00014999,2]
[392732007,1761883833716,-500.0,0.00014999,2]
[392732008,1761883833725,-500.0,0.00014999,2]
[392732009,1761883833734,-500.0,0.00014999,2]
[392732010,1761883833743,-500.0,0.00014999,2]
[392732011,1761883833752,-500.0,0.00014999,2]
[392732012,1761883833761,-500.0,0.00014999,2]
[392732013,1761883833770,-500.0,0.00014999,2]
[392732014,1761883833779,-500.0,0.00014999,2]
[392732015,1761883833788,-500.0,0.00014999,2]
[392732016,1761883833797,-500.0,0.00014999,2]
[392732017,1761883833805,-450.0,0.00014999,2]
[392732018,1761883833815,-670.84822584,0.00014999,2]
[392732019,1761883833826,-88900.5900918,0.00015,2]
[392732020,1761883833840,-5153.76886914,0.00015,2]
[392732021,1761883833851,-458.44747329,0.00015,2]
[392732022,1761883833960,-315.96520198,0.00014272,2]
[392732023,1761883833970,-612.28069834,0.00014272,2]
[392732024,1761883833979,-392.16886722,0.00014272,2]
[392732025,1761883833988,-300.94145371,0.00014272,2]
[392732026,1761883833997,-500.0,0.00014272,2]
[392732027,1761883834006,-256.36665031,0.00014272,2]
[392732028,1761883834015,-531.44185686,0.00014272,2]
[392732029,1761883834030,-500.0,0.00014272,2]
[392732030,1761883834039,-226568.65003881,0.00015,2]
[392732031,1761883834050,-1254.41808677,0.00015,2]
[392732032,1761883834100,-500.0,0.00014272,2]
[392732033,1761883834109,-500.0,0.00014272,2]
[392732034,1761883834118,-500.0,0.00014272,2]
[392732035,1761883834127,-208582.61951291,0.00015,2]
[392732038,1761883837306,-500.0,0.00014272,2]
[392732039,1761883837316,-205.30272008,0.00014272,2]
[392732040,1761883837326,-500.0,0.00014272,2]
[392732041,1761883837336,-500.0,0.00014272,2]
[392732042,1761883837346,-500.0,0.00014272,2]
[392732043,1761883837355,-500.0,0.00014272,2]
[392732044,1761883837364,-500.0,0.00014272,2]
[392732045,1761883837373,-500.0,0.00014272,2]
[392732046,1761883837382,-500.0,0.00014272,2]
[392732047,1761883837392,-500.0,0.00014272,2]
[392732048,1761883837401,-500.0,0.00014272,2]
[392732049,1761883837410,-500.0,0.00014272,2]
[392732050,1761883837419,-500.0,0.00014272,2]
[392732051,1761883837435,-500.0,0.00014272,2]
[392732052,1761883837445,-500.0,0.00014272,2]
[392732053,1761883837454,-500.0,0.00014272,2]
[392732054,1761883837463,-500.0,0.00014272,2]
[392732055,1761883837472,-500.0,0.00014272,2]
[392732056,1761883837482,-500.0,0.00014272,2]
[392732057,1761883837491,-500.0,0.00014272,2]
[392732058,1761883837500,-500.0,0.00014272,2]
[392732059,1761883837510,-500.0,0.00014272,2]
[392732060,1761883837520,-500.0,0.00014272,2]
[392732061,1761883837529,-500.0,0.00014272,2]
[392732062,1761883837539,-500.0,0.00014272,2]
[392732063,1761883837548,-500.0,0.00014272,2]
[392732064,1761883837557,-500.0,0.00014272,2]
[392732065,1761883837566,-500.0,0.00014272,2]
[392732066,1761883837575,-500.0,0.00014272,2]
[392732067,1761883837584,-500.0,0.00014272,2]
[392732068,1761883837593,-500.0,0.00014272,2]
[392732069,1761883837602,-500.0,0.00014272,2]
[392732070,1761883837611,-500.0,0.00014272,2]
[392732071,1761883837621,-500.0,0.00014272,2]
[392732073,1761883837631,-500.0,0.00014272,2]
[392732075,1761883837640,-500.0,0.00014272,2]
[392732077,1761883837649,-3600169.76334049,0.00015,2]
[392732095,1761883839415,-764179.45815193,0.00015,2]
[392732111,1761883839647,-250.00000016,0.00015,2]
[392732122,1761883842471,-503.14794031,0.00015,2]
[392732125,1761883842632,-528.21403825,0.00015,2]
[392732126,1761883842643,-1061.86747976,0.00015,2]
[392732129,1761883845521,-28322.12263156,0.00015,2]
[392732134,1761884022927,-153.80873284,0.00013699,2]
[392732135,1761884071593,-305.726844,0.0001363,2]
[392732136,1761884071617,-62.58855126,0.00013699,2]
[392732137,1761884076905,-205.01292417,0.00013699,2]
[392732139,1761884101627,157.18388791,0.00015753,7]
[392732143,1761884290580,500.0,0.00031506,120]
[392732144,1761884290792,500.0,0.00031506,120]
[392732145,1761884290973,500.0,0.00031506,120]
[392732146,1761884292399,608.17137689,0.00031506,120]
[392732147,1761884292872,500.0,0.00031506,120]
[392732148,1761884293351,500.0,0.00031506,120]
[392732149,1761884294444,529.21692372,0.00031506,120]
[392732150,1761884295325,500.0,0.00031506,120]
[392732151,1761884295425,500.0,0.00031506,120]
[392732152,1761884295755,500.0,0.00031506,120]
[392732153,1761884297461,530.53894544,0.00031506,120]
[392732154,1761884298452,500.0,0.00031506,120]
[392732155,1761884298494,571.46064756,0.00031506,120]
[392732156,1761884298527,500.0,0.00031506,120]
[392732157,1761884298568,519.46106554,0.00031506,120]
[392732158,1761884299787,500.0,0.00031506,120]
[392732159,1761884300196,500.0,0.00031506,120]
[392732160,1761884300337,500.0,0.00031506,120]
[392732161,1761884300378,500.0,0.00031506,120]
[392732162,1761884300503,500.0,0.00031506,120]
[392732164,1761884303149,500.0,0.00031506,120]
[392732165,1761884303595,500.0,0.00031506,120]
[392732166,1761884303902,500.0,0.00031506,120]
[392732167,1761884304435,500.0,0.00031506,120]
[392732168,1761884304808,332.01742209,0.00031506,120]
[392732169,1761884305256,541.24673152,0.00031506,120]
[392732170,1761884306731,500.0,0.00031506,120]
[392732171,1761884307178,583.88645621,0.00031506,120]
[392732172,1761884309417,500.0,0.00031506,120]
[392732173,1761884309682,500.0,0.00031506,120]
[392732174,1761884310853,562.64887446,0.00031506,120]
[392732175,1761884310932,500.0,0.00031506,120]
[392732176,1761884311361,532.70717055,0.00031506,120]
[392732177,1761884312232,500.0,0.00031506,120]
[392732178,1761884312733,517.53127316,0.00031506,120]
[392732179,1761884313223,500.0,0.00031506,120]
[392732180,1761884313555,500.0,0.00031506,120]
[392732181,1761884314159,500.0,0.00031506,120]
[392732182,1761884314207,521.67039252,0.00031506,120]
[392732183,1761884314815,500.0,0.00031506,120]
[392732184,1761884315429,500.0,0.00031506,120]
[392732185,1761884317271,324.03454376,0.00031506,120]
[392732186,1761884318466,511.33162866,0.00031506,120]
[392732187,1761884318649,500.0,0.00031506,120]
[392732188,1761884318765,500.0,0.00031506,120]
[392732189,1761884320425,500.0,0.00031506,120]
[392732190,1761884321165,500.0,0.00031506,120]
[392732191,1761884321468,500.0,0.00031506,120]
[392732192,1761884323257,500.0,0.00031506,120]
[392732193,1761884323583,500.0,0.00031506,120]
[392732194,1761884323731,500.0,0.00031506,120]
[392732195,1761884323822,987.34,0.00031506,120]
[392732196,1761884324442,500.0,0.00031506,120]
[392732197,1761884324883,517.66838148,0.00031506,120]
[392732198,1761884325424,500.0,0.00031506,120]
[392732199,1761884325603,500.0,0.00031506,120]
[392732200,1761884325928,500.0,0.00031506,120]
[392732201,1761884326220,528.05949654,0.00031506,120]
[392732202,1761884326997,500.0,0.00031506,120]
[392732203,1761884327339,500.0,0.00031506,120]
[392732204,1761884328038,500.0,0.00031506,120]
[392732205,1761884329054,500.0,0.00031506,120]
[392732206,1761884331111,500.0,0.00031506,120]
[392732207,1761884331364,500.0,0.00031506,120]
[392732208,1761884331603,500.0,0.00031506,120]
[392732209,1761884333964,500.0,0.00031506,120]
[392732210,1761884334014,500.0,0.00031506,120]
[392732211,1761884334328,650.5,0.00031506,120]
[392732212,1761884335021,154.44833032,0.00031506,120]
[392732213,1761884336023,500.0,0.00031506,120]
[392732214,1761884336693,500.0,0.00031506,120]
[392732215,1761884337476,500.0,0.00031506,120]
[392732216,1761884337565,500.0,0.00031506,120]
[392732217,1761884337651,500.0,0.00031506,120]
[392732218,1761884338646,500.0,0.00031506,120]
[392732219,1761884339209,500.0,0.00031506,120]
[392732220,1761884339750,510.67489243,0.00031506,120]
[392732221,1761884340691,500.0,0.00031506,120]
[392732222,1761884340729,504.88,0.00031506,120]
[392732223,1761884341084,500.0,0.00031506,120]
[392732224,1761884341680,500.0,0.00031506,120]
[392732225,1761884341938,500.0,0.00031506,120]
[392732226,1761884342238,500.0,0.00031506,120]
[392732227,1761884344393,500.0,0.00031506,120]
[392732228,1761884344629,500.0,0.00031506,120]
[392732229,1761884344659,500.0,0.00031506,120]
[392732230,1761884344817,500.0,0.00031506,120]
[392732231,1761884345394,229.16774763,0.00031506,120]
[392732232,1761884346491,500.0,0.00031506,120]
[392732233,1761884347197,500.0,0.00031506,120]
[392732234,1761884347366,500.0,0.00031506,120]
[392732235,1761884347662,500.0,0.00031506,120]
[392732236,1761884348408,559.19135294,0.00031506,120]
[392732237,1761884348678,500.0,0.00031506,120]
[392732238,1761884349082,500.0,0.00031506,120]
[392732239,1761884349753,500.0,0.00031506,120]
[392732240,1761884349791,500.0,0.00031506,120]
[392732241,1761884351124,239.08131513,0.00031506,120]
[392732242,1761884351195,500.0,0.00031506,120]
[392732243,1761884351478,500.0,0.00031506,120]
[392732244,1761884352007,500.0,0.00031506,120]
[392732245,1761884352389,314.9548964,0.00031506,120]
[392732246,1761884352598,576.09197961,0.00031506,120]
[392732247,1761884353615,500.0,0.00031506,120]
[392732248,1761884354401,500.0,0.00031506,120]
[392732249,1761884354784,514.15510087,0.00031506,120]
[392732250,1761884354858,500.0,0.00031506,120]
[392732251,1761884355029,500.0,0.00031506,120]
[392732252,1761884355642,500.0,0.00031506,120]
[392732253,1761884355808,500.0,0.00031506,120]
[392732254,1761884356612,500.0,0.00031506,120]
[392732255,1761884357676,500.0,0.00031506,120]
[392732256,1761884358704,504.72247493,0.00031506,120]
[392732257,1761884359646,500.0,0.00031506,120]
[392732258,1761884360779,500.0,0.00031506,120]
[392732259,1761884361838,563.81820049,0.00031506,120]
[392732260,1761884362178,500.0,0.00031506,120]
[392732261,1761884362219,500.0,0.00031506,120]
[392732262,1761884362535,500.0,0.00031506,120]
[392732263,1761884362614,500.0,0.00031506,120]
[392732264,1761884363344,500.0,0.00031506,120]
[392732265,1761884364070,508.84442889,0.00031506,120]
[392732266,1761884364557,500.0,0.00031506,120]
[392732267,1761884365138,500.0,0.00031506,120]
[392732268,1761884365642,500.0,0.00031506,120]
[392732269,1761884366119,508.9471568,0.00031506,120]
[392732270,1761884366154,595.9624204,0.00031506,120]
[392732271,1761884366895,500.0,0.00031506,120]
[392732272,1761884367136,500.0,0.00031506,120]
[392732273,1761884367339,629.51635624,0.00031506,120]
[392732274,1761884367972,500.0,0.00031506,120]
[392732275,1761884368266,500.0,0.00031506,120]
[392732276,1761884368303,500.0,0.00031506,120]
[392732277,1761884369731,500.0,0.00031506,120]
[392732278,1761884370028,500.0,0.00031506,120]
[392732279,1761884370379,514.3963867,0.00031506,120]
[392732280,1761884370636,500.0,0.00031506,120]
[392732281,1761884374555,795.47,0.00031506,120]
[392732282,1761884374795,589.56738188,0.00031506,120]
[392732283,1761884376279,500.0,0.00031506,120]
[392732284,1761884376716,309.0240258,0.00031506,120]
[392732285,1761884377288,500.0,0.00031506,120]
[392732286,1761884377607,505.11213013,0.00031506,120]
[392732287,1761884378084,500.0,0.00031506,120]
[392732288,1761884379675,880.58,0.00031506,120]
[392732289,1761884379704,500.0,0.00031506,120]
[392732290,1761884379965,500.0,0.00031506,120]
[392732291,1761884380812,1392.01,0.00031506,120]
[392732292,1761884382366,500.0,0.00031506,120]
[392732293,1761884382879,500.0,0.00031506,120]
[392732294,1761884382923,500.0,0.00031506,120]
[392732295,1761884383555,500.0,0.00031506,120]
[392732296,1761884384108,500.0,0.00031506,120]
[392732297,1761884385021,527.62171934,0.00031506,120]
[392732298,1761884385486,500.0,0.00031506,120]
[392732299,1761884385864,500.0,0.00031506,120]
[392732300,1761884387739,500.0,0.00031506,120]
[392732301,1761884390473,522.81413454,0.00031506,120]
[392732302,1761884391006,500.0,0.00031506,120]
[392732303,1761884394031,608.62339609,0.00031506,120]
[392732304,1761884394224,519.92609805,0.00031506,120]
[392732305,1761884395438,500.0,0.00031506,120]
[392732306,1761884396591,500.0,0.00031506,120]
[392732307,1761884397485,500.0,0.00031506,120]
[392732308,1761884397613,500.0,0.00031506,120]
[392732309,1761884397659,515.97654438,0.00031506,120]
[392732310,1761884397733,500.0,0.00031506,120]
[392732311,1761884398108,500.0,0.00031506,120]
[392732312,1761884399366,500.0,0.00031506,120]
[392732313,1761884400050,511.67740085,0.00031506,120]
[392732314,1761884400834,500.0,0.00031506,120]
[392732315,1761884401978,500.0,0.00031506,120]